[Event "Titled Tuesday Blitz February 22 Early 2022"]
[White "Kazancev, Valerij M"]
[Black "Tsatsalashvili, Keti"]
[WhiteFideId "4179609"]
[BlackFideId "13603434"]
[WhiteElo "2464"]
[BlackElo "2246"]
[Result "0-1"]
[Round "08"]
[TimeControl "180+1"]
[Date "2022.02.22"]
[WhiteClock "0:01:17"]
[BlackClock "0:00:33"]

1. c4 {[%clk 0:03:00]}  e6 {[%clk 0:02:51]} 2. Nf3 {[%clk 0:03:00]}  d5 {[%clk 0:02:50]} 3. g3 {[%clk 0:03:01]}  Nf6 {[%clk 0:02:49]} 4. Bg2 {[%clk 0:03:01]}  d4 {[%clk 0:02:41]} 5. O-O {[%clk 0:03:01]}  c5 {[%clk 0:02:32]} 6. e3 {[%clk 0:03:01]}  Nc6 {[%clk 0:02:32]} 7. exd4 {[%clk 0:03:01]}  cxd4 {[%clk 0:02:32]} 8. Re1 {[%clk 0:03:01]}  Bd6 {[%clk 0:02:26]} 9. Na3 {[%clk 0:02:59]}  O-O {[%clk 0:02:22]} 10. d3 {[%clk 0:02:57]}  h6 {[%clk 0:02:19]} 11. Nc2 {[%clk 0:02:55]}  a5 {[%clk 0:02:18]} 12. Ncxd4 {[%clk 0:02:53]}  Nxd4 {[%clk 0:02:17]} 13. Nxd4 {[%clk 0:02:53]}  Bb4 {[%clk 0:02:10]} 14. Nxe6 {[%clk 0:02:23]}  Bxe6 {[%clk 0:02:06]} 15. Re2 {[%clk 0:02:24]}  Bxc4 {[%clk 0:01:52]} 16. Bxh6 {[%clk 0:02:11]}  Qxd3 {[%clk 0:01:49]} 17. Qxd3 {[%clk 0:02:11]}  Bxd3 {[%clk 0:01:50]} 18. Re3 {[%clk 0:02:12]}  Ba6 {[%clk 0:01:41]} 19. Bg5 {[%clk 0:02:06]}  Rad8 {[%clk 0:01:15]} 20. Bxf6 {[%clk 0:02:00]}  gxf6 {[%clk 0:01:15]} 21. Rf3 {[%clk 0:01:54]}  Kg7 {[%clk 0:01:14]} 22. Rf5 {[%clk 0:01:49]}  b6 {[%clk 0:00:55]} 23. a3 {[%clk 0:01:48]}  Bc5 {[%clk 0:00:56]} 24. b4 {[%clk 0:01:47]}  Bd4 {[%clk 0:00:49]} 25. Re1 {[%clk 0:01:28]}  axb4 {[%clk 0:00:48]} 26. axb4 {[%clk 0:01:28]}  Bc3 {[%clk 0:00:42]} 27. b5 {[%clk 0:01:17]}  Bc8 {[%clk 0:00:33]} 0-1


[Site "https://www.chess.com"]

[Event "Titled Tuesday Blitz February 22 Early 2022"]
[White "King, Alexander"]
[Black "Ibrahimli, Murad"]
[WhiteFideId "2063620"]
[BlackFideId "13410229"]
[WhiteElo "2306"]
[BlackElo "2109"]
[Result "1-0"]
[Round "08"]
[TimeControl "180+1"]
[Date "2022.02.22"]
[WhiteClock "0:00:56"]
[BlackClock "0:00:22"]

1. d4 {[%clk 0:03:00]}  Nf6 {[%clk 0:02:59]} 2. c4 {[%clk 0:03:01]}  e6 {[%clk 0:02:59]} 3. Nc3 {[%clk 0:03:01]}  Bb4 {[%clk 0:02:58]} 4. e3 {[%clk 0:03:02]}  c5 {[%clk 0:02:57]} 5. Bd3 {[%clk 0:03:02]}  O-O {[%clk 0:02:58]} 6. Nf3 {[%clk 0:03:02]}  Nc6 {[%clk 0:02:57]} 7. O-O {[%clk 0:02:59]}  Bxc3 {[%clk 0:02:56]} 8. bxc3 {[%clk 0:03:00]}  d6 {[%clk 0:02:57]} 9. e4 {[%clk 0:03:00]}  e5 {[%clk 0:02:57]} 10. d5 {[%clk 0:03:01]}  Ne7 {[%clk 0:02:56]} 11. Nh4 {[%clk 0:03:01]}  Ng6 {[%clk 0:02:55]} 12. Nf5 {[%clk 0:03:01]}  Ne7 {[%clk 0:02:38]} 13. Bg5 {[%clk 0:02:52]}  Bxf5 {[%clk 0:02:33]} 14. exf5 {[%clk 0:02:53]}  h6 {[%clk 0:02:33]} 15. Bh4 {[%clk 0:02:53]}  Kh8 {[%clk 0:02:29]} 16. f4 {[%clk 0:02:38]}  exf4 {[%clk 0:02:21]} 17. Rxf4 {[%clk 0:02:39]}  Neg8 {[%clk 0:02:21]} 18. g4 {[%clk 0:02:23]}  Qe7 {[%clk 0:02:14]} 19. Qd2 {[%clk 0:02:20]}  Rae8 {[%clk 0:01:51]} 20. Re1 {[%clk 0:02:13]}  Qd8 {[%clk 0:01:46]} 21. g5 {[%clk 0:02:01]}  Rxe1+ {[%clk 0:01:31]} 22. Qxe1 {[%clk 0:02:02]}  hxg5 {[%clk 0:01:24]} 23. Bxg5 {[%clk 0:02:03]}  Nh6 {[%clk 0:01:24]} 24. Rh4 {[%clk 0:01:53]}  Kg8 {[%clk 0:00:32]} 25. Qg3 {[%clk 0:01:26]}  Kh7 {[%clk 0:00:24]} 26. Qh3 {[%clk 0:00:57]}  Rg8 {[%clk 0:00:22]} 27. Rxh6+ {[%clk 0:00:56]} 1-0


[Site "https://www.chess.com"]

[Event "Titled Tuesday Blitz February 22 Early 2022"]
[White "Klukin, Kirill"]
[Black "Brunner, Nicolas"]
[WhiteFideId "24199273"]
[BlackFideId "620246"]
[WhiteElo "2324"]
[BlackElo "2372"]
[Result "1/2-1/2"]
[Round "08"]
[TimeControl "180+1"]
[Date "2022.02.22"]
[WhiteClock "0:00:15"]
[BlackClock "0:00:04"]

1. c4 {[%clk 0:03:00]}  c5 {[%clk 0:02:59]} 2. Nc3 {[%clk 0:03:00]}  Nc6 {[%clk 0:02:58]} 3. Nf3 {[%clk 0:02:59]}  g6 {[%clk 0:02:53]} 4. e3 {[%clk 0:02:59]}  Nf6 {[%clk 0:02:51]} 5. d4 {[%clk 0:02:59]}  cxd4 {[%clk 0:02:50]} 6. exd4 {[%clk 0:03:00]}  d5 {[%clk 0:02:42]} 7. cxd5 {[%clk 0:03:01]}  Nxd5 {[%clk 0:02:42]} 8. Qb3 {[%clk 0:03:01]}  e6 {[%clk 0:02:31]} 9. Bb5 {[%clk 0:02:57]}  Bg7 {[%clk 0:02:29]} 10. O-O {[%clk 0:02:57]}  O-O {[%clk 0:02:29]} 11. Bg5 {[%clk 0:02:44]}  Qb6 {[%clk 0:02:11]} 12. Na4 {[%clk 0:02:26]}  Qa5 {[%clk 0:02:07]} 13. Rfd1 {[%clk 0:02:24]}  Bd7 {[%clk 0:01:47]} 14. Nc5 {[%clk 0:02:21]}  Qc7 {[%clk 0:01:27]} 15. Rac1 {[%clk 0:02:17]}  Na5 {[%clk 0:01:23]} 16. Nxd7 {[%clk 0:01:21]}  Nxb3 {[%clk 0:01:08]} 17. Rxc7 {[%clk 0:01:21]}  Nxc7 {[%clk 0:01:06]} 18. Ba4 {[%clk 0:01:20]}  Na5 {[%clk 0:00:40]} 19. Nxf8 {[%clk 0:01:19]}  Rxf8 {[%clk 0:00:38]} 20. Be7 {[%clk 0:01:20]}  Ra8 {[%clk 0:00:36]} 21. Rc1 {[%clk 0:01:14]}  Nd5 {[%clk 0:00:36]} 22. Bd6 {[%clk 0:01:11]}  Bf8 {[%clk 0:00:27]} 23. Be5 {[%clk 0:01:11]}  f6 {[%clk 0:00:22]} 24. Bg3 {[%clk 0:01:09]}  Rd8 {[%clk 0:00:20]} 25. h4 {[%clk 0:01:08]}  a6 {[%clk 0:00:18]} 26. Nd2 {[%clk 0:00:56]}  b5 {[%clk 0:00:17]} 27. Bd1 {[%clk 0:00:57]}  Bd6 {[%clk 0:00:15]} 28. Ne4 {[%clk 0:00:50]}  Bxg3 {[%clk 0:00:14]} 29. fxg3 {[%clk 0:00:51]}  Kg7 {[%clk 0:00:13]} 30. Nc5 {[%clk 0:00:46]}  Rd6 {[%clk 0:00:12]} 31. Bf3 {[%clk 0:00:46]}  Nb4 {[%clk 0:00:09]} 32. a3 {[%clk 0:00:46]}  Nbc6 {[%clk 0:00:09]} 33. Nxe6+ {[%clk 0:00:42]}  Rxe6 {[%clk 0:00:08]} 34. d5 {[%clk 0:00:42]}  Re7 {[%clk 0:00:06]} 35. dxc6 {[%clk 0:00:43]}  Rc7 {[%clk 0:00:07]} 36. Rd1 {[%clk 0:00:40]}  Kf7 {[%clk 0:00:06]} 37. g4 {[%clk 0:00:35]}  Ke7 {[%clk 0:00:06]} 38. h5 {[%clk 0:00:31]}  Nxc6 {[%clk 0:00:05]} 39. Rc1 {[%clk 0:00:31]}  Kd6 {[%clk 0:00:05]} 40. Rd1+ {[%clk 0:00:27]}  Ke7 {[%clk 0:00:04]} 41. Rc1 {[%clk 0:00:24]}  Kd6 {[%clk 0:00:04]} 42. Rd1+ {[%clk 0:00:15]}  Ke7 {[%clk 0:00:04]} 1/2-1/2


[Site "https://www.chess.com"]

[Event "Titled Tuesday Blitz February 22 Early 2022"]
[White "Kozak, Antoni"]
[Black "Nesterov, Arseniy"]
[WhiteFideId "21832030"]
[BlackFideId "24198455"]
[WhiteElo "2232"]
[BlackElo "2489"]
[Result "1-0"]
[Round "08"]
[TimeControl "180+1"]
[Date "2022.02.22"]
[WhiteClock "0:00:14"]
[BlackClock "0:00:01"]

1. d4 {[%clk 0:03:00]}  d5 {[%clk 0:03:00]} 2. Bf4 {[%clk 0:03:00]}  Nf6 {[%clk 0:03:00]} 3. e3 {[%clk 0:03:00]}  Bf5 {[%clk 0:03:00]} 4. c4 {[%clk 0:02:58]}  e6 {[%clk 0:03:01]} 5. Nc3 {[%clk 0:02:53]}  Bb4 {[%clk 0:03:00]} 6. Nf3 {[%clk 0:02:43]}  O-O {[%clk 0:02:59]} 7. Be2 {[%clk 0:02:40]}  Ne4 {[%clk 0:02:53]} 8. Qb3 {[%clk 0:02:39]}  c5 {[%clk 0:02:41]} 9. O-O {[%clk 0:02:37]}  Nc6 {[%clk 0:02:38]} 10. cxd5 {[%clk 0:02:33]}  Na5 {[%clk 0:02:37]} 11. Qd1 {[%clk 0:02:17]}  Bxc3 {[%clk 0:02:36]} 12. bxc3 {[%clk 0:02:14]}  Nxc3 {[%clk 0:02:37]} 13. Qe1 {[%clk 0:02:13]}  Nxe2+ {[%clk 0:02:36]} 14. Qxe2 {[%clk 0:02:14]}  Qxd5 {[%clk 0:02:35]} 15. Qb5 {[%clk 0:02:06]}  c4 {[%clk 0:02:28]} 16. Qb2 {[%clk 0:01:59]}  Be4 {[%clk 0:02:12]} 17. Nd2 {[%clk 0:01:56]}  Bxg2 {[%clk 0:02:05]} 18. Rfc1 {[%clk 0:01:55]}  Rfc8 {[%clk 0:01:51]} 19. Qb4 {[%clk 0:01:43]}  b6 {[%clk 0:01:44]} 20. Qe7 {[%clk 0:01:29]}  Be4 {[%clk 0:01:38]} 21. Qh4 {[%clk 0:01:23]}  Bg6 {[%clk 0:01:35]} 22. Qg3 {[%clk 0:01:19]}  c3 {[%clk 0:01:34]} 23. Nf3 {[%clk 0:01:17]}  c2 {[%clk 0:01:17]} 24. Ne5 {[%clk 0:01:08]}  Rc3 {[%clk 0:01:15]} 25. h4 {[%clk 0:01:03]}  Nc4 {[%clk 0:01:03]} 26. Kh2 {[%clk 0:00:53]}  Nxe5 {[%clk 0:00:50]} 27. Bxe5 {[%clk 0:00:44]}  h5 {[%clk 0:00:50]} 28. Rg1 {[%clk 0:00:40]}  Kh7 {[%clk 0:00:46]} 29. Qf4 {[%clk 0:00:31]}  Rac8 {[%clk 0:00:42]} 30. Rac1 {[%clk 0:00:27]}  f6 {[%clk 0:00:11]} 31. Rxg6 {[%clk 0:00:16]}  Kxg6 {[%clk 0:00:07]} 32. Rg1+ {[%clk 0:00:16]}  Kf7 {[%clk 0:00:07]} 33. Rxg7+ {[%clk 0:00:16]}  Ke8 {[%clk 0:00:03]} 34. Qxf6 {[%clk 0:00:15]}  Qd7 {[%clk 0:00:01]} 35. Rg8# {[%clk 0:00:14]} 1-0


[Site "https://www.chess.com"]

[Event "Titled Tuesday Blitz February 22 Early 2022"]
[White "Lonoff, Marc"]
[Black "Piliczewski, Bogusz"]
[WhiteFideId "2001349"]
[BlackFideId "1104144"]
[WhiteElo "2237"]
[BlackElo "1896"]
[Result "1-0"]
[Round "08"]
[TimeControl "180+1"]
[Date "2022.02.22"]
[WhiteClock "0:00:04"]
[BlackClock "0:00:01"]

1. c4 {[%clk 0:03:00]}  c6 {[%clk 0:02:56]} 2. e4 {[%clk 0:02:59]}  d5 {[%clk 0:02:56]} 3. exd5 {[%clk 0:02:59]}  cxd5 {[%clk 0:02:57]} 4. cxd5 {[%clk 0:02:59]}  Nf6 {[%clk 0:02:57]} 5. Nc3 {[%clk 0:02:57]}  Nxd5 {[%clk 0:02:56]} 6. Bc4 {[%clk 0:02:56]}  Nb6 {[%clk 0:02:54]} 7. Bb3 {[%clk 0:02:56]}  Bf5 {[%clk 0:02:50]} 8. Qf3 {[%clk 0:02:54]}  Qd7 {[%clk 0:02:32]} 9. g4 {[%clk 0:02:49]}  Bg6 {[%clk 0:02:31]} 10. h4 {[%clk 0:02:45]}  f6 {[%clk 0:02:08]} 11. h5 {[%clk 0:02:38]}  Bd3 {[%clk 0:02:05]} 12. Rh3 {[%clk 0:02:29]}  Bc4 {[%clk 0:01:59]} 13. Bxc4 {[%clk 0:02:09]}  Nxc4 {[%clk 0:01:58]} 14. Rg3 {[%clk 0:01:36]}  Nc6 {[%clk 0:01:49]} 15. Nge2 {[%clk 0:01:35]}  e5 {[%clk 0:01:41]} 16. Qd5 {[%clk 0:01:33]}  O-O-O {[%clk 0:01:34]} 17. Qxc4 {[%clk 0:01:30]}  Kb8 {[%clk 0:01:27]} 18. a3 {[%clk 0:01:27]}  Bd6 {[%clk 0:01:23]} 19. b4 {[%clk 0:01:26]}  e4 {[%clk 0:01:20]} 20. Re3 {[%clk 0:01:13]}  Rhe8 {[%clk 0:01:20]} 21. Bb2 {[%clk 0:01:12]}  f5 {[%clk 0:01:10]} 22. O-O-O {[%clk 0:01:07]}  g6 {[%clk 0:01:01]} 23. hxg6 {[%clk 0:01:06]}  hxg6 {[%clk 0:01:01]} 24. gxf5 {[%clk 0:01:06]}  gxf5 {[%clk 0:01:01]} 25. f4 {[%clk 0:00:59]}  exf3 {[%clk 0:00:57]} 26. Rxf3 {[%clk 0:00:59]}  Ne5 {[%clk 0:00:57]} 27. Qd5 {[%clk 0:00:51]}  Nxf3 {[%clk 0:00:54]} 28. Qxf3 {[%clk 0:00:51]}  Rc8 {[%clk 0:00:51]} 29. Kb1 {[%clk 0:00:48]}  Be5 {[%clk 0:00:43]} 30. d4 {[%clk 0:00:39]}  Bf6 {[%clk 0:00:42]} 31. Qd3 {[%clk 0:00:35]}  Re7 {[%clk 0:00:30]} 32. Rf1 {[%clk 0:00:33]}  Qe6 {[%clk 0:00:27]} 33. Qxf5 {[%clk 0:00:24]}  Qxf5+ {[%clk 0:00:22]} 34. Rxf5 {[%clk 0:00:24]}  Bg7 {[%clk 0:00:21]} 35. d5 {[%clk 0:00:19]}  Bxc3 {[%clk 0:00:18]} 36. Nxc3 {[%clk 0:00:19]}  Re1+ {[%clk 0:00:17]} 37. Ka2 {[%clk 0:00:18]}  Rh1 {[%clk 0:00:16]} 38. Rf2 {[%clk 0:00:17]}  Rd8 {[%clk 0:00:14]} 39. Rd2 {[%clk 0:00:17]}  Rh5 {[%clk 0:00:13]} 40. Kb3 {[%clk 0:00:15]}  a6 {[%clk 0:00:12]} 41. a4 {[%clk 0:00:15]}  b5 {[%clk 0:00:12]} 42. axb5 {[%clk 0:00:14]}  axb5 {[%clk 0:00:13]} 43. Nxb5 {[%clk 0:00:14]}  Kb7 {[%clk 0:00:13]} 44. Nc3 {[%clk 0:00:12]}  Kb6 {[%clk 0:00:13]} 45. d6 {[%clk 0:00:10]}  Kc6 {[%clk 0:00:12]} 46. Ne4 {[%clk 0:00:08]}  Rh4 {[%clk 0:00:11]} 47. Rc2+ {[%clk 0:00:03]}  Kd7 {[%clk 0:00:10]} 48. Nc5+ {[%clk 0:00:02]}  Kc6 {[%clk 0:00:04]} 49. Ne6+ {[%clk 0:00:02]}  Kd7 {[%clk 0:00:04]} 50. Nxd8 {[%clk 0:00:02]}  Kxd8 {[%clk 0:00:05]} 51. Rd2 {[%clk 0:00:03]}  Kd7 {[%clk 0:00:04]} 52. Bc3 {[%clk 0:00:03]}  Rh3 {[%clk 0:00:04]} 53. Rd4 {[%clk 0:00:03]}  Rh6 {[%clk 0:00:03]} 54. Kc4 {[%clk 0:00:03]}  Rxd6 {[%clk 0:00:02]} 55. b5 {[%clk 0:00:03]}  Rxd4+ {[%clk 0:00:01]} 56. Bxd4 {[%clk 0:00:03]}  Kc7 {[%clk 0:00:02]} 57. Kc5 {[%clk 0:00:04]}  Kb7 {[%clk 0:00:02]} 58. Be5 {[%clk 0:00:03]}  Ka8 {[%clk 0:00:02]} 59. Kc6 {[%clk 0:00:03]}  Ka7 {[%clk 0:00:02]} 60. Kc7 {[%clk 0:00:03]}  Ka8 {[%clk 0:00:02]} 61. Bf6 {[%clk 0:00:03]}  Ka7 {[%clk 0:00:01]} 62. b6+ {[%clk 0:00:04]} 1-0


[Site "https://www.chess.com"]

[Event "Titled Tuesday Blitz February 22 Early 2022"]
[White "Manukian, Artak"]
[Black "Dwilewicz, Katarzyna"]
[WhiteFideId "13301373"]
[BlackFideId "1148486"]
[WhiteElo "2490"]
[BlackElo "1907"]
[Result "1-0"]
[Round "08"]
[TimeControl "180+1"]
[Date "2022.02.22"]
[WhiteClock "0:00:38"]
[BlackClock "0:00:01"]

1. e4 {[%clk 0:03:00]}  e5 {[%clk 0:02:59]} 2. Nf3 {[%clk 0:03:00]}  Nc6 {[%clk 0:02:58]} 3. d4 {[%clk 0:03:00]}  exd4 {[%clk 0:02:57]} 4. Nxd4 {[%clk 0:03:01]}  Nf6 {[%clk 0:02:56]} 5. Nxc6 {[%clk 0:03:00]}  bxc6 {[%clk 0:02:55]} 6. e5 {[%clk 0:03:01]}  Qe7 {[%clk 0:02:54]} 7. Qe2 {[%clk 0:03:00]}  Nd5 {[%clk 0:02:55]} 8. c4 {[%clk 0:03:00]}  Nb6 {[%clk 0:02:54]} 9. b3 {[%clk 0:03:00]}  Bb7 {[%clk 0:02:54]} 10. Bb2 {[%clk 0:02:54]}  O-O-O {[%clk 0:02:54]} 11. Nc3 {[%clk 0:02:49]}  g6 {[%clk 0:02:53]} 12. O-O-O {[%clk 0:02:48]}  Bg7 {[%clk 0:02:52]} 13. f4 {[%clk 0:02:47]}  Rde8 {[%clk 0:02:36]} 14. Ne4 {[%clk 0:02:36]}  d5 {[%clk 0:02:06]} 15. Qg4+ {[%clk 0:02:10]}  Qe6 {[%clk 0:01:39]} 16. Qxe6+ {[%clk 0:02:05]}  fxe6 {[%clk 0:01:40]} 17. Nc5 {[%clk 0:01:58]}  Rhf8 {[%clk 0:01:27]} 18. g3 {[%clk 0:01:50]}  Nd7 {[%clk 0:01:21]} 19. Nxd7 {[%clk 0:01:44]}  Kxd7 {[%clk 0:01:21]} 20. h4 {[%clk 0:01:44]}  Kc8 {[%clk 0:00:54]} 21. h5 {[%clk 0:01:39]}  gxh5 {[%clk 0:00:36]} 22. Rxh5 {[%clk 0:01:39]}  h6 {[%clk 0:00:36]} 23. c5 {[%clk 0:01:17]}  Rf5 {[%clk 0:00:24]} 24. Rxf5 {[%clk 0:01:15]}  exf5 {[%clk 0:00:25]} 25. Bd3 {[%clk 0:01:13]}  Rf8 {[%clk 0:00:24]} 26. Rh1 {[%clk 0:01:13]}  Kd8 {[%clk 0:00:23]} 27. Kd2 {[%clk 0:01:05]}  Ke7 {[%clk 0:00:20]} 28. Ke3 {[%clk 0:01:04]}  Bc8 {[%clk 0:00:21]} 29. b4 {[%clk 0:01:00]}  Be6 {[%clk 0:00:20]} 30. a3 {[%clk 0:00:56]}  Rb8 {[%clk 0:00:20]} 31. Bc3 {[%clk 0:00:56]}  Rg8 {[%clk 0:00:19]} 32. Kf2 {[%clk 0:00:53]}  Rd8 {[%clk 0:00:17]} 33. Rh5 {[%clk 0:00:50]}  Rf8 {[%clk 0:00:16]} 34. Bd4 {[%clk 0:00:50]}  Rf7 {[%clk 0:00:12]} 35. a4 {[%clk 0:00:47]}  Kd7 {[%clk 0:00:10]} 36. b5 {[%clk 0:00:45]}  cxb5 {[%clk 0:00:10]} 37. axb5 {[%clk 0:00:45]}  c6 {[%clk 0:00:08]} 38. b6 {[%clk 0:00:42]}  axb6 {[%clk 0:00:07]} 39. cxb6 {[%clk 0:00:43]}  Kc8 {[%clk 0:00:06]} 40. Ba6+ {[%clk 0:00:42]}  Kb8 {[%clk 0:00:06]} 41. Bc5 {[%clk 0:00:42]}  Bf8 {[%clk 0:00:03]} 42. Bxf8 {[%clk 0:00:40]}  Rxf8 {[%clk 0:00:04]} 43. Rxh6 {[%clk 0:00:40]}  Bd7 {[%clk 0:00:04]} 44. Rd6 {[%clk 0:00:38]}  Be8 {[%clk 0:00:01]} 45. Rd8# {[%clk 0:00:38]} 1-0


[Site "https://www.chess.com"]

[Event "Titled Tuesday Blitz February 22 Early 2022"]
[White "Maze, Sebastien"]
[Black "Slugin, Sergey"]
[WhiteFideId "613762"]
[BlackFideId "4122569"]
[WhiteElo "2462"]
[BlackElo "2358"]
[Result "1-0"]
[Round "08"]
[TimeControl "180+1"]
[Date "2022.02.22"]
[WhiteClock "0:01:36"]
[BlackClock "0:00:02"]

1. e4 {[%clk 0:03:00]}  c5 {[%clk 0:02:56]} 2. Nf3 {[%clk 0:03:00]}  e6 {[%clk 0:02:56]} 3. c4 {[%clk 0:02:59]}  Nc6 {[%clk 0:02:56]} 4. Nc3 {[%clk 0:02:57]}  g6 {[%clk 0:02:56]} 5. d4 {[%clk 0:02:56]}  cxd4 {[%clk 0:02:55]} 6. Nxd4 {[%clk 0:02:57]}  Bg7 {[%clk 0:02:55]} 7. Be3 {[%clk 0:02:57]}  Nge7 {[%clk 0:02:53]} 8. Ndb5 {[%clk 0:02:57]}  O-O {[%clk 0:02:49]} 9. Be2 {[%clk 0:02:54]}  f5 {[%clk 0:02:41]} 10. O-O {[%clk 0:02:43]}  f4 {[%clk 0:02:25]} 11. Bc5 {[%clk 0:02:41]}  b6 {[%clk 0:02:25]} 12. Ba3 {[%clk 0:02:39]}  a6 {[%clk 0:02:24]} 13. Nd6 {[%clk 0:02:37]}  Nd4 {[%clk 0:02:13]} 14. Bg4 {[%clk 0:02:19]}  Rb8 {[%clk 0:01:27]} 15. Re1 {[%clk 0:02:11]}  Be5 {[%clk 0:01:17]} 16. Ne2 {[%clk 0:02:09]}  Nxe2+ {[%clk 0:00:59]} 17. Qxe2 {[%clk 0:02:06]}  b5 {[%clk 0:01:00]} 18. cxb5 {[%clk 0:02:05]}  axb5 {[%clk 0:01:01]} 19. Bc5 {[%clk 0:02:05]}  Ba6 {[%clk 0:00:59]} 20. b4 {[%clk 0:02:04]}  Nc6 {[%clk 0:00:50]} 21. Rad1 {[%clk 0:02:04]}  Kg7 {[%clk 0:00:41]} 22. a4 {[%clk 0:02:02]}  Rh8 {[%clk 0:00:21]} 23. axb5 {[%clk 0:01:55]}  Bxd6 {[%clk 0:00:21]} 24. Rxd6 {[%clk 0:01:52]}  Bxb5 {[%clk 0:00:20]} 25. Qb2+ {[%clk 0:01:50]}  Kf7 {[%clk 0:00:12]} 26. Bxe6+ {[%clk 0:01:48]}  dxe6 {[%clk 0:00:13]} 27. Rxd8 {[%clk 0:01:47]}  Rhxd8 {[%clk 0:00:14]} 28. e5 {[%clk 0:01:46]}  Rd5 {[%clk 0:00:06]} 29. h4 {[%clk 0:01:44]}  Rbd8 {[%clk 0:00:04]} 30. Qc1 {[%clk 0:01:44]}  Rd2 {[%clk 0:00:04]} 31. Kh2 {[%clk 0:01:40]}  h6 {[%clk 0:00:04]} 32. Bd6 {[%clk 0:01:37]}  Rxf2 {[%clk 0:00:03]} 33. Qc5 {[%clk 0:01:36]}  f3 {[%clk 0:00:02]} 34. Qxf2 {[%clk 0:01:36]} 1-0


[Site "https://www.chess.com"]

[Event "Titled Tuesday Blitz February 22 Early 2022"]
[White "Mekhitarian, Krikor Sevag"]
[Black "Hakemi, Arman"]
[WhiteFideId "2107660"]
[BlackFideId "22520805"]
[WhiteElo "2796"]
[BlackElo "2631"]
[Result "1/2-1/2"]
[Round "08"]
[TimeControl "180+1"]
[Date "2022.02.22"]
[WhiteClock "0:00:06"]
[BlackClock "0:00:40"]

1. e4 {[%clk 0:03:00]}  c5 {[%clk 0:02:53]} 2. Nf3 {[%clk 0:03:00]}  e6 {[%clk 0:02:52]} 3. d4 {[%clk 0:03:00]}  cxd4 {[%clk 0:02:52]} 4. Nxd4 {[%clk 0:03:01]}  Nc6 {[%clk 0:02:53]} 5. Nc3 {[%clk 0:03:00]}  Qc7 {[%clk 0:02:52]} 6. g3 {[%clk 0:02:58]}  a6 {[%clk 0:02:51]} 7. Bg2 {[%clk 0:02:58]}  Nf6 {[%clk 0:02:51]} 8. O-O {[%clk 0:02:57]}  Nxd4 {[%clk 0:02:52]} 9. Qxd4 {[%clk 0:02:58]}  Bc5 {[%clk 0:02:52]} 10. Bf4 {[%clk 0:02:59]}  d6 {[%clk 0:02:52]} 11. Qd3 {[%clk 0:02:59]}  Ng4 {[%clk 0:02:37]} 12. Na4 {[%clk 0:02:32]}  Ne5 {[%clk 0:02:35]} 13. Bxe5 {[%clk 0:02:02]}  dxe5 {[%clk 0:02:34]} 14. Nxc5 {[%clk 0:02:03]}  Qxc5 {[%clk 0:02:35]} 15. Rfd1 {[%clk 0:02:03]}  O-O {[%clk 0:02:32]} 16. c3 {[%clk 0:02:00]}  b5 {[%clk 0:02:25]} 17. Qd6 {[%clk 0:01:58]}  Qa7 {[%clk 0:02:15]} 18. Qxe5 {[%clk 0:01:56]}  f6 {[%clk 0:02:08]} 19. Qd4 {[%clk 0:01:55]}  e5 {[%clk 0:02:08]} 20. Qxa7 {[%clk 0:01:54]}  Rxa7 {[%clk 0:02:09]} 21. Rd6 {[%clk 0:01:41]}  Rd7 {[%clk 0:02:03]} 22. Rad1 {[%clk 0:01:39]}  Rfd8 {[%clk 0:02:01]} 23. Rxd7 {[%clk 0:01:38]}  Rxd7 {[%clk 0:02:01]} 24. Rxd7 {[%clk 0:01:38]}  Bxd7 {[%clk 0:02:02]} 25. f4 {[%clk 0:01:21]}  Kf8 {[%clk 0:02:01]} 26. Kf2 {[%clk 0:01:20]}  Ke7 {[%clk 0:02:01]} 27. Bf1 {[%clk 0:01:20]}  Kd6 {[%clk 0:02:00]} 28. a4 {[%clk 0:01:12]}  bxa4 {[%clk 0:01:53]} 29. Bxa6 {[%clk 0:01:11]}  Be6 {[%clk 0:01:54]} 30. Bb5 {[%clk 0:01:06]}  Bb3 {[%clk 0:01:54]} 31. Ke3 {[%clk 0:01:07]}  g5 {[%clk 0:01:50]} 32. fxg5 {[%clk 0:01:00]}  fxg5 {[%clk 0:01:51]} 33. Bd3 {[%clk 0:00:58]}  Kc5 {[%clk 0:01:43]} 34. Kd2 {[%clk 0:00:57]}  Be6 {[%clk 0:01:29]} 35. Bc2 {[%clk 0:00:46]}  Bd7 {[%clk 0:01:27]} 36. Bb1 {[%clk 0:00:46]}  Bc6 {[%clk 0:01:24]} 37. Ke3 {[%clk 0:00:44]}  Bd7 {[%clk 0:01:22]} 38. Ba2 {[%clk 0:00:44]}  Bb5 {[%clk 0:01:15]} 39. h4 {[%clk 0:00:43]}  h6 {[%clk 0:01:14]} 40. hxg5 {[%clk 0:00:37]}  hxg5 {[%clk 0:01:15]} 41. Be6 {[%clk 0:00:35]}  Be8 {[%clk 0:01:05]} 42. Bg4 {[%clk 0:00:27]}  Kc4 {[%clk 0:01:01]} 43. Bd1 {[%clk 0:00:27]}  Kc5 {[%clk 0:00:55]} 44. Kd3 {[%clk 0:00:20]}  Bb5+ {[%clk 0:00:54]} 45. Kd2 {[%clk 0:00:21]}  Be8 {[%clk 0:00:55]} 46. Bc2 {[%clk 0:00:19]}  Bc6 {[%clk 0:00:51]} 47. Bd3 {[%clk 0:00:14]}  Be8 {[%clk 0:00:49]} 48. Kc2 {[%clk 0:00:15]}  Bc6 {[%clk 0:00:47]} 49. Kb1 {[%clk 0:00:14]}  Bd7 {[%clk 0:00:44]} 50. Ka2 {[%clk 0:00:13]}  Be6+ {[%clk 0:00:41]} 51. Ka3 {[%clk 0:00:13]}  Bb3 {[%clk 0:00:42]} 52. Be2 {[%clk 0:00:10]}  Bc2 {[%clk 0:00:41]} 53. Bf3 {[%clk 0:00:10]}  Kb5 {[%clk 0:00:39]} 54. Be2+ {[%clk 0:00:05]}  Kc5 {[%clk 0:00:40]} 55. Bf3 {[%clk 0:00:06]}  Kc4 {[%clk 0:00:39]} 56. Be2+ {[%clk 0:00:06]}  Kc5 {[%clk 0:00:40]} 1/2-1/2


[Site "https://www.chess.com"]

[Event "Titled Tuesday Blitz February 22 Early 2022"]
[White "Moroni, Luca Jr"]
[Black "Samunenkov, Ihor"]
[WhiteFideId "865834"]
[BlackFideId "14187086"]
[WhiteElo "2573"]
[BlackElo "2406"]
[Result "1-0"]
[Round "08"]
[TimeControl "180+1"]
[Date "2022.02.22"]
[WhiteClock "0:01:04"]
[BlackClock "0:00:05"]

1. d4 {[%clk 0:03:00]}  d5 {[%clk 0:02:59]} 2. Bf4 {[%clk 0:02:56]}  Nf6 {[%clk 0:02:58]} 3. e3 {[%clk 0:02:52]}  e6 {[%clk 0:02:59]} 4. Nf3 {[%clk 0:02:50]}  Bd6 {[%clk 0:02:59]} 5. Nbd2 {[%clk 0:02:49]}  O-O {[%clk 0:02:58]} 6. Bd3 {[%clk 0:02:48]}  b6 {[%clk 0:02:57]} 7. Qe2 {[%clk 0:02:47]}  c5 {[%clk 0:02:53]} 8. c3 {[%clk 0:02:47]}  Nc6 {[%clk 0:02:38]} 9. Ne5 {[%clk 0:02:38]}  Bb7 {[%clk 0:02:25]} 10. O-O {[%clk 0:02:34]}  Ne7 {[%clk 0:02:17]} 11. Qf3 {[%clk 0:02:29]}  Qc7 {[%clk 0:02:08]} 12. Qh3 {[%clk 0:02:15]}  Ng6 {[%clk 0:01:38]} 13. Nxg6 {[%clk 0:02:10]}  hxg6 {[%clk 0:01:34]} 14. Bxd6 {[%clk 0:02:10]}  Qxd6 {[%clk 0:01:34]} 15. Nf3 {[%clk 0:02:10]}  Rfe8 {[%clk 0:01:19]} 16. Rad1 {[%clk 0:02:07]}  Qe7 {[%clk 0:01:04]} 17. Ne5 {[%clk 0:02:00]}  Rad8 {[%clk 0:00:54]} 18. f4 {[%clk 0:01:59]}  Ne4 {[%clk 0:00:52]} 19. Bxe4 {[%clk 0:01:56]}  dxe4 {[%clk 0:00:53]} 20. Rd2 {[%clk 0:01:53]}  cxd4 {[%clk 0:00:47]} 21. cxd4 {[%clk 0:01:37]}  Bd5 {[%clk 0:00:46]} 22. g4 {[%clk 0:01:37]}  Rc8 {[%clk 0:00:38]} 23. Rg2 {[%clk 0:01:35]}  g5 {[%clk 0:00:26]} 24. fxg5 {[%clk 0:01:30]}  Rf8 {[%clk 0:00:23]} 25. Qh5 {[%clk 0:01:25]}  g6 {[%clk 0:00:10]} 26. Qh6 {[%clk 0:01:24]}  Rfd8 {[%clk 0:00:06]} 27. Rxf7 {[%clk 0:01:07]}  Rc1+ {[%clk 0:00:05]} 28. Kf2 {[%clk 0:01:05]}  Rf8 {[%clk 0:00:05]} 29. Qg7# {[%clk 0:01:04]} 1-0


[Site "https://www.chess.com"]